[Event "Titled Tuesday Blitz June 20 Late 2023"]
[White "Herrera, Juan Sebastian"]
[Black "Koellner, Ruben Gideon"]
[WhiteFideId "4403266"]
[BlackFideId "12993093"]
[WhiteElo "2255"]
[BlackElo "2314"]
[Result "0-1"]
[Round "3"]
[TimeControl "180+2"]
[Date "2023.06.20"]
[WhiteClock "0:00:05"]
[BlackClock "0:00:08"]
[Board "97"]

1. d4 {[%clk 0:03:00]}  d6 {[%clk 0:03:00]} 2. c4 {[%clk 0:03:01]}  e5 {[%clk 0:03:00]} 3. dxe5 {[%clk 0:03:00]}  dxe5 {[%clk 0:03:01]} 4. Qxd8+ {[%clk 0:03:01]}  Kxd8 {[%clk 0:03:02]} 5. g3 {[%clk 0:02:59]}  Be6 {[%clk 0:03:02]} 6. Bg2 {[%clk 0:02:56]}  c6 {[%clk 0:03:02]} 7. b3 {[%clk 0:02:56]}  Nd7 {[%clk 0:03:02]} 8. Bb2 {[%clk 0:02:55]}  Kc7 {[%clk 0:03:02]} 9. Nd2 {[%clk 0:02:55]}  f6 {[%clk 0:03:02]} 10. O-O-O {[%clk 0:02:56]}  Nh6 {[%clk 0:03:01]} 11. Ngf3 {[%clk 0:02:44]}  Bc5 {[%clk 0:02:54]} 12. Ne4 {[%clk 0:02:44]}  Be7 {[%clk 0:02:54]} 13. Nc3 {[%clk 0:02:37]}  a5 {[%clk 0:02:46]} 14. Kc2 {[%clk 0:02:32]}  Ng4 {[%clk 0:02:42]} 15. Rhf1 {[%clk 0:02:29]}  Bc5 {[%clk 0:02:43]} 16. e3 {[%clk 0:02:03]}  Bf5+ {[%clk 0:02:42]} 17. e4 {[%clk 0:02:04]}  Be6 {[%clk 0:02:33]} 18. Rd2 {[%clk 0:02:00]}  Rad8 {[%clk 0:02:20]} 19. h3 {[%clk 0:01:59]}  Nh6 {[%clk 0:02:17]} 20. Na4 {[%clk 0:01:59]}  Ba7 {[%clk 0:02:16]} 21. Bc3 {[%clk 0:01:56]}  b6 {[%clk 0:02:15]} 22. Nb2 {[%clk 0:01:53]}  Nc5 {[%clk 0:02:14]} 23. Re2 {[%clk 0:01:49]}  Nf7 {[%clk 0:02:04]} 24. Nh4 {[%clk 0:01:45]}  Nd6 {[%clk 0:02:01]} 25. f4 {[%clk 0:01:42]}  exf4 {[%clk 0:01:52]} 26. gxf4 {[%clk 0:01:42]}  Rhe8 {[%clk 0:01:51]} 27. Rfe1 {[%clk 0:01:08]}  g5 {[%clk 0:01:39]} 28. Bxf6 {[%clk 0:00:35]}  gxh4 {[%clk 0:01:38]} 29. f5 {[%clk 0:00:30]}  Bc8 {[%clk 0:01:23]} 30. Bxd8+ {[%clk 0:00:30]}  Rxd8 {[%clk 0:01:23]} 31. f6 {[%clk 0:00:28]}  Nf7 {[%clk 0:01:19]} 32. e5 {[%clk 0:00:27]}  Bf5+ {[%clk 0:01:18]} 33. Kc1 {[%clk 0:00:23]}  Ne6 {[%clk 0:01:15]} 34. Be4 {[%clk 0:00:18]}  Bxh3 {[%clk 0:00:54]} 35. Rh1 {[%clk 0:00:17]}  Bg4 {[%clk 0:00:53]} 36. Rg2 {[%clk 0:00:15]}  h5 {[%clk 0:00:52]} 37. Rxh4 {[%clk 0:00:12]}  Nxe5 {[%clk 0:00:52]} 38. Rh1 {[%clk 0:00:04]}  Nf4 {[%clk 0:00:44]} 39. Rf2 {[%clk 0:00:03]}  Ne2+ {[%clk 0:00:44]} 40. Kb1 {[%clk 0:00:02]}  Nc3+ {[%clk 0:00:44]} 41. Kc2 {[%clk 0:00:03]}  Nxe4 {[%clk 0:00:44]} 42. Rf4 {[%clk 0:00:04]}  Nc5 {[%clk 0:00:40]} 43. Re1 {[%clk 0:00:03]}  Nf7 {[%clk 0:00:31]} 44. a3 {[%clk 0:00:03]}  Ne6 {[%clk 0:00:30]} 45. Rfe4 {[%clk 0:00:04]}  Neg5 {[%clk 0:00:31]} 46. Re7+ {[%clk 0:00:04]}  Rd7 {[%clk 0:00:31]} 47. Re8 {[%clk 0:00:02]}  Bf5+ {[%clk 0:00:28]} 48. Kc3 {[%clk 0:00:03]}  h4 {[%clk 0:00:25]} 49. b4 {[%clk 0:00:02]}  axb4+ {[%clk 0:00:25]} 50. axb4 {[%clk 0:00:03]}  h3 {[%clk 0:00:23]} 51. R1e2 {[%clk 0:00:02]}  Kb7 {[%clk 0:00:22]} 52. Kb3 {[%clk 0:00:02]}  Bb8 {[%clk 0:00:23]} 53. Na4 {[%clk 0:00:02]}  h2 {[%clk 0:00:21]} 54. Re1 {[%clk 0:00:02]}  Be4 {[%clk 0:00:20]} 55. Re7 {[%clk 0:00:01]}  Rxe7 {[%clk 0:00:10]} 56. fxe7 {[%clk 0:00:02]}  Nd6 {[%clk 0:00:10]} 57. c5 {[%clk 0:00:02]}  Ne8 {[%clk 0:00:10]} 58. Nc3 {[%clk 0:00:01]}  h1=Q {[%clk 0:00:09]} 59. Rxh1 {[%clk 0:00:01]}  Bxh1 {[%clk 0:00:10]} 60. cxb6 {[%clk 0:00:02]}  Kxb6 {[%clk 0:00:10]} 61. b5 {[%clk 0:00:03]}  cxb5 {[%clk 0:00:10]} 62. Kb4 {[%clk 0:00:03]}  Bd6+ {[%clk 0:00:10]} 63. Kb3 {[%clk 0:00:04]}  Bc6 {[%clk 0:00:09]} 64. Ne2 {[%clk 0:00:03]}  Bxe7 {[%clk 0:00:10]} 65. Nd4 {[%clk 0:00:04]}  Bd5+ {[%clk 0:00:10]} 66. Kc3 {[%clk 0:00:05]}  b4+ {[%clk 0:00:10]} 67. Kc2 {[%clk 0:00:05]}  Bc4 {[%clk 0:00:11]} 68. Nf5 {[%clk 0:00:04]}  Bc5 {[%clk 0:00:11]} 69. Kb2 {[%clk 0:00:04]}  Nd6 {[%clk 0:00:10]} 70. Ne7 {[%clk 0:00:04]}  Bd4+ {[%clk 0:00:10]} 71. Kc2 {[%clk 0:00:05]}  b3+ {[%clk 0:00:10]} 72. Kd2 {[%clk 0:00:05]}  b2 {[%clk 0:00:11]} 73. Kc2 {[%clk 0:00:03]}  Bd3+ {[%clk 0:00:10]} 74. Kd2 {[%clk 0:00:04]}  b1=Q {[%clk 0:00:10]} 75. Nc8+ {[%clk 0:00:05]}  Kc7 {[%clk 0:00:08]} 76. Nb6 {[%clk 0:00:05]}  Qc2+ {[%clk 0:00:07]} 77. Ke1 {[%clk 0:00:05]}  Qe2# {[%clk 0:00:08]} 0-1


[Site "https://www.chess.com"]

[Event "Titled Tuesday Blitz June 20 Late 2023"]
[White "Manukyan, Sargis A."]
[Black "FuenfgegenWilly"]
[WhiteFideId "13303970"]
[WhiteElo "2187"]
[BlackElo "2422"]
[Result "1-0"]
[Round "3"]
[TimeControl "180+2"]
[Date "2023.06.20"]
[WhiteClock "0:01:27"]
[BlackClock "0:00:26"]
[Board "98"]

1. d4 {[%clk 0:03:00]}  d5 {[%clk 0:02:56]} 2. c4 {[%clk 0:03:01]}  e5 {[%clk 0:02:53]} 3. Nc3 {[%clk 0:03:02]}  dxc4 {[%clk 0:02:36]} 4. d5 {[%clk 0:02:57]}  a6 {[%clk 0:02:23]} 5. a4 {[%clk 0:02:51]}  Bb4 {[%clk 0:02:16]} 6. e4 {[%clk 0:02:49]}  Nf6 {[%clk 0:02:17]} 7. f3 {[%clk 0:02:40]}  c6 {[%clk 0:01:48]} 8. Bg5 {[%clk 0:02:25]}  cxd5 {[%clk 0:01:46]} 9. Bxf6 {[%clk 0:02:25]}  gxf6 {[%clk 0:01:33]} 10. Qxd5 {[%clk 0:02:22]}  Qc7 {[%clk 0:01:19]} 11. Qxc4 {[%clk 0:02:18]}  Nc6 {[%clk 0:01:18]} 12. O-O-O {[%clk 0:02:11]}  Bxc3 {[%clk 0:01:15]} 13. Qxc3 {[%clk 0:02:11]}  Be6 {[%clk 0:01:11]} 14. Kb1 {[%clk 0:02:08]}  O-O {[%clk 0:01:11]} 15. h4 {[%clk 0:02:00]}  Rfd8 {[%clk 0:01:04]} 16. Rc1 {[%clk 0:01:56]}  Qd7 {[%clk 0:00:57]} 17. Ne2 {[%clk 0:01:46]}  b5 {[%clk 0:00:56]} 18. Qxc6 {[%clk 0:01:39]}  Qd3+ {[%clk 0:00:56]} 19. Qc2 {[%clk 0:01:39]}  Bc4 {[%clk 0:00:49]} 20. Nc3 {[%clk 0:01:34]}  Qxc2+ {[%clk 0:00:45]} 21. Kxc2 {[%clk 0:01:32]}  Rac8 {[%clk 0:00:40]} 22. Bxc4 {[%clk 0:01:32]}  Rxc4 {[%clk 0:00:41]} 23. Rhd1 {[%clk 0:01:29]}  Rdc8 {[%clk 0:00:42]} 24. axb5 {[%clk 0:01:28]}  axb5 {[%clk 0:00:42]} 25. Kb3 {[%clk 0:01:28]}  R4c5 {[%clk 0:00:30]} 26. Ne2 {[%clk 0:01:27]}  Kg7 {[%clk 0:00:28]} 27. Rxc5 {[%clk 0:01:27]}  Rxc5 {[%clk 0:00:26]} 28. Rc1 {[%clk 0:01:27]} 1-0


[Site "https://www.chess.com"]

[Event "Titled Tuesday Blitz June 20 Late 2023"]
[White "Kovalevsky, Stanislav"]
[Black "Principe, Gerson"]
[WhiteFideId "13508598"]
[BlackFideId "3804550"]
[WhiteElo "2112"]
[BlackElo "2229"]
[Result "1/2-1/2"]
[Round "3"]
[TimeControl "180+2"]
[Date "2023.06.20"]
[WhiteClock "0:00:05"]
[BlackClock "0:00:07"]
[Board "100"]

1. c4 {[%clk 0:03:00]}  e6 {[%clk 0:02:58]} 2. e4 {[%clk 0:03:00]}  c5 {[%clk 0:02:56]} 3. Nc3 {[%clk 0:03:00]}  Nc6 {[%clk 0:02:56]} 4. g3 {[%clk 0:03:00]}  g6 {[%clk 0:02:49]} 5. Bg2 {[%clk 0:03:01]}  Bg7 {[%clk 0:02:50]} 6. h4 {[%clk 0:03:01]}  h5 {[%clk 0:02:45]} 7. d3 {[%clk 0:03:01]}  Nge7 {[%clk 0:02:42]} 8. Bg5 {[%clk 0:03:01]}  d6 {[%clk 0:02:37]} 9. Nf3 {[%clk 0:02:56]}  a6 {[%clk 0:02:34]} 10. Rb1 {[%clk 0:02:53]}  O-O {[%clk 0:02:28]} 11. O-O {[%clk 0:02:51]}  Rb8 {[%clk 0:02:22]} 12. Qd2 {[%clk 0:02:42]}  Re8 {[%clk 0:02:16]} 13. Bh6 {[%clk 0:02:38]}  Bh8 {[%clk 0:02:16]} 14. a3 {[%clk 0:02:31]}  b5 {[%clk 0:02:08]} 15. cxb5 {[%clk 0:02:31]}  axb5 {[%clk 0:02:08]} 16. b4 {[%clk 0:02:32]}  Ba6 {[%clk 0:01:58]} 17. Ne2 {[%clk 0:02:28]}  Qb6 {[%clk 0:01:42]} 18. Rfc1 {[%clk 0:02:21]}  Rec8 {[%clk 0:01:40]} 19. Be3 {[%clk 0:02:18]}  Nd4 {[%clk 0:01:40]} 20. Nfxd4 {[%clk 0:01:59]}  cxd4 {[%clk 0:01:39]} 21. Bg5 {[%clk 0:01:59]}  Nc6 {[%clk 0:01:15]} 22. Rc2 {[%clk 0:01:39]}  Ne5 {[%clk 0:00:55]} 23. Rbc1 {[%clk 0:01:37]}  Rxc2 {[%clk 0:00:45]} 24. Rxc2 {[%clk 0:01:38]}  Rc8 {[%clk 0:00:45]} 25. Qc1 {[%clk 0:01:31]}  Rxc2 {[%clk 0:00:43]} 26. Qxc2 {[%clk 0:01:32]}  Bb7 {[%clk 0:00:37]} 27. Nc1 {[%clk 0:00:57]}  Nc6 {[%clk 0:00:36]} 28. Nb3 {[%clk 0:00:55]}  Bg7 {[%clk 0:00:34]} 29. Bf4 {[%clk 0:00:50]}  e5 {[%clk 0:00:20]} 30. Bg5 {[%clk 0:00:49]}  Bc8 {[%clk 0:00:20]} 31. Bd8 {[%clk 0:00:30]}  Qb7 {[%clk 0:00:17]} 32. Na5 {[%clk 0:00:26]}  Nxa5 {[%clk 0:00:17]} 33. bxa5 {[%clk 0:00:23]}  Bf8 {[%clk 0:00:17]} 34. Kh2 {[%clk 0:00:20]}  Qd7 {[%clk 0:00:15]} 35. Qc7 {[%clk 0:00:19]}  Qxc7 {[%clk 0:00:14]} 36. Bxc7 {[%clk 0:00:19]}  Be7 {[%clk 0:00:14]} 37. Bh3 {[%clk 0:00:18]}  Ba6 {[%clk 0:00:13]} 38. Bd7 {[%clk 0:00:18]}  Kf8 {[%clk 0:00:12]} 39. Bc6 {[%clk 0:00:18]}  f6 {[%clk 0:00:10]} 40. Kg2 {[%clk 0:00:17]}  Kf7 {[%clk 0:00:10]} 41. Kf3 {[%clk 0:00:16]}  f5 {[%clk 0:00:10]} 42. Ke2 {[%clk 0:00:15]}  Kf6 {[%clk 0:00:10]} 43. Bd5 {[%clk 0:00:15]}  g5 {[%clk 0:00:10]} 44. hxg5+ {[%clk 0:00:15]}  Kxg5 {[%clk 0:00:11]} 45. f3 {[%clk 0:00:16]}  f4 {[%clk 0:00:10]} 46. gxf4+ {[%clk 0:00:15]}  Kxf4 {[%clk 0:00:11]} 47. Kf2 {[%clk 0:00:16]}  h4 {[%clk 0:00:11]} 48. Bb3 {[%clk 0:00:13]}  h3 {[%clk 0:00:11]} 49. Bd1 {[%clk 0:00:12]}  h2 {[%clk 0:00:08]} 50. Kg2 {[%clk 0:00:12]}  Ke3 {[%clk 0:00:09]} 51. Kxh2 {[%clk 0:00:11]}  Kxd3 {[%clk 0:00:10]} 52. a4 {[%clk 0:00:11]}  bxa4 {[%clk 0:00:09]} 53. Bxa4 {[%clk 0:00:11]}  Ke3 {[%clk 0:00:07]} 54. Kg3 {[%clk 0:00:10]}  d3 {[%clk 0:00:07]} 55. Bb6+ {[%clk 0:00:10]}  Ke2 {[%clk 0:00:08]} 56. Bb3 {[%clk 0:00:07]}  d2 {[%clk 0:00:08]} 57. f4 {[%clk 0:00:08]}  exf4+ {[%clk 0:00:07]} 58. Kxf4 {[%clk 0:00:09]}  d1=Q {[%clk 0:00:08]} 59. Bxd1+ {[%clk 0:00:08]}  Kxd1 {[%clk 0:00:09]} 60. Kf5 {[%clk 0:00:07]}  Bc8+ {[%clk 0:00:08]} 61. Kg6 {[%clk 0:00:07]}  Kc2 {[%clk 0:00:08]} 62. Kf7 {[%clk 0:00:07]}  Bh4 {[%clk 0:00:07]} 63. Bc7 {[%clk 0:00:06]}  Bg3 {[%clk 0:00:08]} 64. a6 {[%clk 0:00:04]}  Bxa6 {[%clk 0:00:08]} 65. Ke6 {[%clk 0:00:05]}  Bc4+ {[%clk 0:00:08]} 66. Kd7 {[%clk 0:00:04]}  Bd3 {[%clk 0:00:07]} 67. Bxd6 {[%clk 0:00:04]}  Bb5+ {[%clk 0:00:07]} 68. Kc7 {[%clk 0:00:04]}  Bxd6+ {[%clk 0:00:05]} 69. Kxd6 {[%clk 0:00:04]}  Bc4 {[%clk 0:00:06]} 70. e5 {[%clk 0:00:04]}  Kd3 {[%clk 0:00:07]} 71. Kc5 {[%clk 0:00:04]}  Be6 {[%clk 0:00:07]} 72. Kd6 {[%clk 0:00:04]}  Bh3 {[%clk 0:00:07]} 73. e6 {[%clk 0:00:05]}  Bxe6 {[%clk 0:00:07]} 1/2-1/2


[Site "https://www.chess.com"]

[Event "Titled Tuesday Blitz June 20 Late 2023"]
[White "Vlassov, Nikolai"]
[Black "Spaqi, Wilson"]
[WhiteFideId "4103360"]
[BlackFideId "2053888"]
[WhiteElo "2324"]
[BlackElo "2416"]
[Result "1-0"]
[Round "3"]
[TimeControl "180+2"]
[Date "2023.06.20"]
[WhiteClock "0:00:53"]
[BlackClock "0:00:36"]
[Board "102"]

1. e4 {[%clk 0:03:00]}  c6 {[%clk 0:03:00]} 2. d4 {[%clk 0:03:00]}  d5 {[%clk 0:03:01]} 3. e5 {[%clk 0:03:01]}  a6 {[%clk 0:03:01]} 4. Bd3 {[%clk 0:02:58]}  g6 {[%clk 0:03:01]} 5. h4 {[%clk 0:02:55]}  h5 {[%clk 0:03:00]} 6. Nh3 {[%clk 0:02:53]}  Bxh3 {[%clk 0:02:59]} 7. Rxh3 {[%clk 0:02:53]}  e6 {[%clk 0:02:59]} 8. c3 {[%clk 0:02:50]}  c5 {[%clk 0:02:58]} 9. Nd2 {[%clk 0:02:43]}  cxd4 {[%clk 0:02:54]} 10. cxd4 {[%clk 0:02:43]}  Nc6 {[%clk 0:02:37]} 11. Nf3 {[%clk 0:02:42]}  Bh6 {[%clk 0:02:30]} 12. Be3 {[%clk 0:02:13]}  Bxe3 {[%clk 0:02:14]} 13. fxe3 {[%clk 0:02:13]}  Nge7 {[%clk 0:02:15]} 14. Ng5 {[%clk 0:02:06]}  Qa5+ {[%clk 0:02:02]} 15. Qd2 {[%clk 0:01:54]}  O-O {[%clk 0:01:43]} 16. Qxa5 {[%clk 0:01:40]}  Nxa5 {[%clk 0:01:43]} 17. b3 {[%clk 0:01:40]}  Rac8 {[%clk 0:01:42]} 18. Kd2 {[%clk 0:01:40]}  Rc7 {[%clk 0:01:35]} 19. Rg1 {[%clk 0:01:25]}  Kg7 {[%clk 0:01:34]} 20. g4 {[%clk 0:01:25]}  Rh8 {[%clk 0:01:30]} 21. Rf3 {[%clk 0:01:11]}  Nec6 {[%clk 0:01:16]} 22. gxh5 {[%clk 0:01:05]}  Rxh5 {[%clk 0:01:05]} 23. Nxe6+ {[%clk 0:00:59]}  fxe6 {[%clk 0:00:52]} 24. Rxg6+ {[%clk 0:00:58]}  Kh8 {[%clk 0:00:44]} 25. Rf8+ {[%clk 0:00:57]}  Kh7 {[%clk 0:00:36]} 26. Rg5+ {[%clk 0:00:53]} 1-0


[Site "https://www.chess.com"]

[Event "Titled Tuesday Blitz June 20 Late 2023"]
[White "Sokolov, Andrei"]
[Black "ArtemDyachuk"]
[WhiteFideId "11600306"]
[WhiteElo "2473"]
[BlackElo "2607"]
[Result "1-0"]
[Round "3"]
[TimeControl "180+2"]
[Date "2023.06.20"]
[WhiteClock "0:00:05"]
[BlackClock "0:00:02"]
[Board "103"]

1. d4 {[%clk 0:03:00]}  Nf6 {[%clk 0:02:58]} 2. c4 {[%clk 0:03:00]}  e6 {[%clk 0:02:54]} 3. g3 {[%clk 0:02:57]}  c5 {[%clk 0:02:53]} 4. d5 {[%clk 0:02:55]}  d6 {[%clk 0:02:52]} 5. Bg2 {[%clk 0:02:45]}  exd5 {[%clk 0:02:51]} 6. cxd5 {[%clk 0:02:44]}  g6 {[%clk 0:02:52]} 7. Nf3 {[%clk 0:02:44]}  Bg7 {[%clk 0:02:52]} 8. O-O {[%clk 0:02:44]}  O-O {[%clk 0:02:51]} 9. Nc3 {[%clk 0:02:38]}  a6 {[%clk 0:02:44]} 10. a4 {[%clk 0:02:37]}  Re8 {[%clk 0:02:45]} 11. Qc2 {[%clk 0:02:20]}  Bf5 {[%clk 0:02:40]} 12. Qb3 {[%clk 0:02:20]}  Nbd7 {[%clk 0:02:30]} 13. Qxb7 {[%clk 0:02:03]}  Rb8 {[%clk 0:02:24]} 14. Qxa6 {[%clk 0:02:01]}  Rb6 {[%clk 0:02:07]} 15. Qc4 {[%clk 0:01:42]}  Rb4 {[%clk 0:02:04]} 16. Qa2 {[%clk 0:01:40]}  Bc2 {[%clk 0:01:33]} 17. Nd2 {[%clk 0:00:45]}  Nb8 {[%clk 0:01:24]} 18. a5 {[%clk 0:00:37]}  Na6 {[%clk 0:01:23]} 19. Qa3 {[%clk 0:00:30]}  Nd7 {[%clk 0:01:19]} 20. Be4 {[%clk 0:00:14]}  Bxe4 {[%clk 0:01:13]} 21. Ndxe4 {[%clk 0:00:12]}  Ne5 {[%clk 0:00:57]} 22. Nd2 {[%clk 0:00:06]}  Nc4 {[%clk 0:00:54]} 23. Nxc4 {[%clk 0:00:06]}  Rxc4 {[%clk 0:00:55]} 24. Qb3 {[%clk 0:00:06]}  Rb4 {[%clk 0:00:54]} 25. Qc2 {[%clk 0:00:06]}  Qd7 {[%clk 0:00:46]} 26. Bd2 {[%clk 0:00:06]}  Reb8 {[%clk 0:00:46]} 27. Rab1 {[%clk 0:00:06]}  Qh3 {[%clk 0:00:35]} 28. b3 {[%clk 0:00:06]}  Rg4 {[%clk 0:00:24]} 29. Qd3 {[%clk 0:00:06]}  Nb4 {[%clk 0:00:23]} 30. Qf3 {[%clk 0:00:06]}  Nc2 {[%clk 0:00:20]} 31. Rfc1 {[%clk 0:00:05]}  Nd4 {[%clk 0:00:19]} 32. Qg2 {[%clk 0:00:05]}  Qh5 {[%clk 0:00:13]} 33. h3 {[%clk 0:00:05]}  Rg5 {[%clk 0:00:14]} 34. Bxg5 {[%clk 0:00:05]}  Qxg5 {[%clk 0:00:15]} 35. f4 {[%clk 0:00:05]}  Qe7 {[%clk 0:00:14]} 36. Qf2 {[%clk 0:00:04]}  Nf5 {[%clk 0:00:13]} 37. g4 {[%clk 0:00:03]}  Bd4 {[%clk 0:00:13]} 38. gxf5 {[%clk 0:00:02]}  Bxf2+ {[%clk 0:00:13]} 39. Kxf2 {[%clk 0:00:03]}  Rb4 {[%clk 0:00:12]} 40. e3 {[%clk 0:00:02]}  Qh4+ {[%clk 0:00:11]} 41. Kf3 {[%clk 0:00:02]}  Qxh3+ {[%clk 0:00:11]} 42. Ke2 {[%clk 0:00:03]}  Qg2+ {[%clk 0:00:11]} 43. Kd3 {[%clk 0:00:03]}  Rb8 {[%clk 0:00:08]} 44. fxg6 {[%clk 0:00:03]}  hxg6 {[%clk 0:00:07]} 45. Rg1 {[%clk 0:00:03]}  Qh3 {[%clk 0:00:07]} 46. Rh1 {[%clk 0:00:03]}  Qf5+ {[%clk 0:00:07]} 47. e4 {[%clk 0:00:02]}  Qxf4 {[%clk 0:00:07]} 48. Rh3 {[%clk 0:00:03]}  Qe5 {[%clk 0:00:06]} 49. Rbh1 {[%clk 0:00:03]}  Qd4+ {[%clk 0:00:06]} 50. Kc2 {[%clk 0:00:04]}  c4 {[%clk 0:00:04]} 51. Rh8+ {[%clk 0:00:03]}  Qxh8 {[%clk 0:00:04]} 52. Rxh8+ {[%clk 0:00:03]}  Kxh8 {[%clk 0:00:05]} 53. bxc4 {[%clk 0:00:04]}  Ra8 {[%clk 0:00:05]} 54. Nb5 {[%clk 0:00:03]}  Kg7 {[%clk 0:00:04]} 55. Nxd6 {[%clk 0:00:04]}  Rxa5 {[%clk 0:00:04]} 56. Kd3 {[%clk 0:00:04]}  Kf6 {[%clk 0:00:03]} 57. Kd4 {[%clk 0:00:04]}  Ke7 {[%clk 0:00:03]} 58. c5 {[%clk 0:00:03]}  g5 {[%clk 0:00:02]} 59. Nf5+ {[%clk 0:00:03]}  Kf6 {[%clk 0:00:02]} 60. c6 {[%clk 0:00:03]}  Ra1 {[%clk 0:00:01]} 61. c7 {[%clk 0:00:03]}  Rc1 {[%clk 0:00:02]} 62. d6 {[%clk 0:00:03]}  Ke6 {[%clk 0:00:02]} 63. e5 {[%clk 0:00:03]}  Kxf5 {[%clk 0:00:02]} 64. d7 {[%clk 0:00:03]}  Rd1+ {[%clk 0:00:02]} 65. Kc5 {[%clk 0:00:03]}  Rc1+ {[%clk 0:00:02]} 66. Kd6 {[%clk 0:00:03]}  Rd1+ {[%clk 0:00:02]} 67. Ke7 {[%clk 0:00:04]}  Kxe5 {[%clk 0:00:01]} 68. d8=Q {[%clk 0:00:04]}  Re1 {[%clk 0:00:01]} 69. c8=Q {[%clk 0:00:04]}  Kf4+ {[%clk 0:00:01]} 70. Kf8 {[%clk 0:00:05]}  g4 {[%clk 0:00:02]} 71. Qg5+ {[%clk 0:00:05]}  Kg3 {[%clk 0:00:03]} 72. Qc7+ {[%clk 0:00:05]}  Kh3 {[%clk 0:00:03]} 73. Qc3+ {[%clk 0:00:05]}  g3 {[%clk 0:00:02]} 74. Qgxg3# {[%clk 0:00:05]} 1-0


[Site "https://www.chess.com"]

[Event "Titled Tuesday Blitz June 20 Late 2023"]
[White "Bjelobrk, Igor"]
[Black "Luo, Terry"]
[WhiteFideId "4300726"]
[BlackFideId "30931045"]
[WhiteElo "2319"]
[BlackElo "2265"]
[Result "0-1"]
[Round "3"]
[TimeControl "180+2"]
[Date "2023.06.20"]
[WhiteClock "0:00:00"]
[BlackClock "0:00:09"]
[Board "104"]

1. d4 {[%clk 0:03:00]}  Nf6 {[%clk 0:02:59]} 2. c4 {[%clk 0:03:00]}  g6 {[%clk 0:02:59]} 3. Nc3 {[%clk 0:03:00]}  Bg7 {[%clk 0:03:00]} 4. e4 {[%clk 0:02:59]}  d6 {[%clk 0:03:01]} 5. Nf3 {[%clk 0:02:59]}  O-O {[%clk 0:03:02]} 6. Be2 {[%clk 0:03:00]}  e5 {[%clk 0:03:02]} 7. d5 {[%clk 0:02:59]}  a5 {[%clk 0:03:02]} 8. Bg5 {[%clk 0:02:56]}  h6 {[%clk 0:03:02]} 9. Be3 {[%clk 0:02:52]}  Ng4 {[%clk 0:03:02]} 10. Bc1 {[%clk 0:02:52]}  f5 {[%clk 0:03:03]} 11. exf5 {[%clk 0:02:51]}  gxf5 {[%clk 0:03:03]} 12. g3 {[%clk 0:02:51]}  Na6 {[%clk 0:02:59]} 13. Nh4 {[%clk 0:02:49]}  Nc5 {[%clk 0:02:52]} 14. O-O {[%clk 0:02:45]}  Nf6 {[%clk 0:02:46]} 15. f4 {[%clk 0:02:44]}  e4 {[%clk 0:02:41]} 16. Be3 {[%clk 0:02:41]}  b6 {[%clk 0:02:40]} 17. h3 {[%clk 0:02:39]}  Bd7 {[%clk 0:02:39]} 18. Kh2 {[%clk 0:02:39]}  Nh7 {[%clk 0:02:24]} 19. Qd2 {[%clk 0:02:37]}  Rf7 {[%clk 0:02:07]} 20. Bh5 {[%clk 0:02:34]}  Rf8 {[%clk 0:02:03]} 21. Ng6 {[%clk 0:02:28]}  Rf7 {[%clk 0:01:59]} 22. Rg1 {[%clk 0:02:23]}  Nf6 {[%clk 0:01:57]} 23. Be2 {[%clk 0:02:23]}  Kh7 {[%clk 0:01:56]} 24. Nh4 {[%clk 0:02:23]}  Ng8 {[%clk 0:01:50]} 25. Rg2 {[%clk 0:02:15]}  Bf6 {[%clk 0:01:43]} 26. Rag1 {[%clk 0:02:14]}  Qe7 {[%clk 0:01:40]} 27. Bd4 {[%clk 0:01:28]}  Raf8 {[%clk 0:01:22]} 28. Nd1 {[%clk 0:01:26]}  Rg7 {[%clk 0:00:38]} 29. Ne3 {[%clk 0:01:24]}  Bxd4 {[%clk 0:00:35]} 30. Qxd4 {[%clk 0:01:22]}  Qf6 {[%clk 0:00:33]} 31. Qxf6 {[%clk 0:01:14]}  Rxf6 {[%clk 0:00:34]} 32. b3 {[%clk 0:01:12]}  Ne7 {[%clk 0:00:34]} 33. Rb1 {[%clk 0:01:07]}  Rf8 {[%clk 0:00:34]} 34. a3 {[%clk 0:01:06]}  a4 {[%clk 0:00:33]} 35. b4 {[%clk 0:01:03]}  Nb3 {[%clk 0:00:34]} 36. Rd1 {[%clk 0:01:01]}  Ng6 {[%clk 0:00:32]} 37. Nxg6 {[%clk 0:00:57]}  Kxg6 {[%clk 0:00:33]} 38. Rf2 {[%clk 0:00:47]}  Kf6 {[%clk 0:00:24]} 39. g4 {[%clk 0:00:44]}  Ke7 {[%clk 0:00:24]} 40. Rg1 {[%clk 0:00:37]}  Nd4 {[%clk 0:00:21]} 41. Bd1 {[%clk 0:00:37]}  Rgf7 {[%clk 0:00:18]} 42. g5 {[%clk 0:00:20]}  hxg5 {[%clk 0:00:18]} 43. fxg5 {[%clk 0:00:20]}  f4 {[%clk 0:00:18]} 44. g6 {[%clk 0:00:21]}  Rg7 {[%clk 0:00:14]} 45. Nc2 {[%clk 0:00:13]}  e3 {[%clk 0:00:12]} 46. Rfg2 {[%clk 0:00:08]}  f3 {[%clk 0:00:11]} 47. Nxd4 {[%clk 0:00:08]}  fxg2 {[%clk 0:00:12]} 48. Rxg2 {[%clk 0:00:08]}  Rf2 {[%clk 0:00:12]} 49. Bc2 {[%clk 0:00:06]}  Kf6 {[%clk 0:00:09]} 50. h4 {[%clk 0:00:05]}  Rf4 {[%clk 0:00:08]} 51. Ne2 {[%clk 0:00:01]}  Rxh4+ {[%clk 0:00:08]} 52. Kg1 {[%clk 0:00:02]}  Rh6 {[%clk 0:00:08]} 53. Rg3 {[%clk 0:00:02]}  Be8 {[%clk 0:00:08]} 54. Rxe3 {[%clk 0:00:02]}  Bxg6 {[%clk 0:00:08]} 55. Re6+ {[%clk 0:00:00]}  Kf7 {[%clk 0:00:09]} 0-1


[Site "https://www.chess.com"]